bitfinex/quotes_ETHUSD_20250415
["timestamp","ask_amount","ask_price","bid_price","bid_amount"]
[1744685292905,6.15867,1623.8,1623.4,6.1599]
[1744685293135,0.8285,1623.7,1623.4,6.1599]
[1744685293535,0.8285,1623.7,1623.4,12.31963]
[1744685293906,0.8285,1623.7,1623.4,6.15973]
[1744685294417,6.15929,1623.6,1623.2,6.16062]
[1744685294607,6.15929,1623.6,1623.3,3.0]
[1744685294930,6.98731,1623.7,1623.3,9.16022]
[1744685295135,6.98731,1623.7,1623.4,6.15982]
[1744685295921,8.301885,1623.7,1623.3,9.16022]
[1744685296104,6.15933,1623.6,1623.3,3.0]
[1744685296301,12.3187,1623.6,1623.3,3.0]
[1744685297153,6.15991,1623.4,1623.1,6.61820186]
[1744685297335,6.15991,1623.4,1623.1,0.45722186]
[1744685297521,6.15991,1623.4,1623.0,12.32274]
[1744685298218,0.7597,1623.3,1623.0,6.16137]
[1744685298559,6.92001,1623.3,1622.9,9.62916222]
[1744685298760,0.7597,1623.1,1622.7,6.16252]
[1744685299038,6.16082,1623.2,1622.5,2.5629598]
[1744685299039,6.9215,1622.9,1622.5,6.16332]
[1744685299238,6.9215,1622.9,1622.5,12.32647]
[1744685300033,6.9215,1622.9,1622.5,6.16315]
[1744685300333,6.9215,1622.9,1622.5,6.62854015]
[1744685300538,6.9215,1622.9,1622.5,12.79167015]
[1744685300742,6.9215,1622.9,1622.6,6.16289]
[1744685300904,0.7597,1622.9,1622.6,6.16289]
[1744685301744,6.16107,1623.1,1622.7,6.1624]
[1744685301745,6.96157,1623.1,1622.7,6.1624]
[1744685301941,2.678526,1623.1,1622.6,6.22452594]
[1744685302148,6.16184,1622.9,1622.6,6.1629]
[1744685304139,0.7714,1622.8,1622.5,6.62868015]
[1744685304317,0.7714,1622.8,1622.6,6.16292]
[1744685304652,0.7714,1622.8,1622.6,12.32554]
[1744685304814,0.7714,1622.8,1622.6,6.16272]
[1744685305742,0.8139,1623.0,1622.7,0.5366]
[1744685305958,0.7648,1623.2,1623.1,6.16104]
[1744685306125,0.7648,1623.4,1623.1,6.16104]
[1744685307156,0.7648,1623.4,1623.1,6.61616512]
[1744685307358,0.7648,1623.4,1623.1,6.61600512]
[1744685307554,0.7648,1623.4,1623.2,6.16058]
[1744685309038,6.1596,1623.5,1623.2,6.16058]
[1744685309239,0.813,1623.5,1623.2,6.16049]
[1744685309444,0.813,1623.5,1623.3,6.16025]
[1744685310987,0.813,1623.5,1623.2,6.16049]
[1744685311149,0.813,1623.5,1623.1,6.16099]
[1744685311150,6.97278,1623.5,1623.1,6.16099]
[1744685311344,0.813,1623.5,1623.0,0.5366]
[1744685311548,0.813,1623.5,1623.2,12.32073]
[1744685311843,6.97254,1623.5,1623.1,6.161]
[1744685312048,8.285713,1623.5,1623.1,6.161]
[1744685312437,6.15991,1623.4,1623.1,6.161]
[1744685314387,2.126173,1623.5,1623.2,6.16059]
[1744685316487,6.4137,1623.7,1623.4,6.15956]
[1744685316695,0.7547,1623.7,1623.5,6.15951]
[1744685317005,0.812,1623.8,1623.5,12.31885]
[1744685317206,50.5999598,1624.1,1623.7,6.15877]
[1744685317207,0.812,1624.1,1623.7,6.15877]
[1744685317411,1.508912,1624.1,1623.7,6.15877]
[1744685317704,7.666302,1624.1,1623.7,6.15877]
[1744685318012,6.15803,1623.9,1623.5,6.63174471]
[1744685318660,6.15803,1623.9,1623.5,6.63157471]
[1744685318859,6.15803,1623.9,1623.6,6.15914]
[1744685319294,1.508912,1624.1,1623.8,6.15802]
[1744685319818,0.812,1624.1,1623.9,6.15785]
[1744685320111,6.15651,1624.3,1623.9,12.31565]
[1744685320112,6.96041,1624.3,1623.9,12.31565]
[1744685320278,6.96041,1624.3,1623.9,12.3157]
[1744685321211,13.11715,1624.3,1623.9,6.15782]
[1744685321389,13.11715,1624.3,1623.7,9.2579598]
[1744685321390,6.15706,1624.2,1623.8,6.15827]
[1744685321614,0.8039,1624.1,1623.6,6.1591]
[1744685321777,6.15777,1624.0,1623.6,6.1591]
[1744685321979,6.15805,1623.9,1623.6,6.1591]
[1744685322205,6.96231,1623.8,1623.5,6.13025471]
[1744685322873,0.8039,1623.8,1623.5,12.28976471]
[1744685323074,0.8039,1623.8,1623.7,6.15877]
[1744685323268,6.98626,1624.0,1623.7,6.15877]
[1744685323479,8.300612,1624.0,1623.6,6.15902]
[1744685323666,14.458502,1624.0,1623.6,6.15902]
[1744685324401,8.300612,1624.0,1623.6,12.31802]
[1744685324699,8.300612,1624.0,1623.6,6.159]
[1744685324902,8.300612,1624.0,1623.6,6.22058503]
[1744685325325,8.300612,1624.0,1623.7,6.15871]
[1744685325531,8.300612,1624.0,1623.6,6.22058503]
[1744685325532,13.14416,1624.0,1623.6,6.159]
[1744685325695,6.15804,1623.9,1623.6,6.159]
[1744685326025,12.31628,1623.9,1623.5,12.28976471]
[1744685326425,6.15847,1623.8,1623.5,12.28976471]
[1744685326628,0.783,1623.7,1623.5,12.28976471]
[1744685327000,0.783,1623.7,1623.5,6.13025471]
[1744685327590,0.783,1623.7,1623.5,12.28976471]
[1744685328631,0.783,1623.7,1623.5,12.28961471]
[1744685328830,5.652,1624.1,1623.6,0.59818955]
[1744685328831,12.61902,1624.1,1623.6,0.59818955]
[1744685329042,13.880922,1624.1,1623.7,6.1584]
[1744685329532,6.4616,1624.1,1623.8,12.31674]
[1744685329894,12.61888,1624.1,1623.7,6.15871]
[1744685330632,6.15781,1624.0,1623.6,9.69562]
[1744685330953,0.8096,1624.1,1623.8,6.15801]
[1744685331142,0.8096,1624.1,1623.8,12.31625]
[1744685331432,0.8096,1624.1,1623.8,6.15801]
[1744685332137,0.803,1624.3,1624.1,6.15707]
[1744685332353,6.95951,1624.3,1623.8,9.15839]
[1744685332633,6.15701,1624.2,1623.9,6.158]
[1744685333416,6.15701,1624.2,1623.8,9.15824]
[1744685333612,6.15779,1624.0,1623.7,6.15873]
[1744685333817,6.92753,1623.9,1623.6,6.1591]
[1744685334046,6.92753,1623.9,1623.7,4.0]
[1744685334428,0.7695,1623.9,1623.7,4.0]
[1744685334748,0.7695,1623.9,1623.6,12.31805]
[1744685335344,0.7707,1624.0,1623.7,6.15858]
[1744685335726,6.92839,1624.0,1623.7,6.15858]
[1744685336447,0.7707,1624.0,1623.7,6.15858]
[1744685336852,0.7998,1624.2,1623.9,6.15797]
[1744685338454,0.7998,1624.2,1623.9,12.37740257]
[1744685338648,0.7998,1624.2,1623.9,6.15786]
[1744685339625,0.7998,1624.2,1624.0,6.1576]
[1744685341756,0.827,1624.4,1624.1,6.15725]
[1744685341924,6.98332,1624.4,1624.0,6.15759]
[1744685342124,6.9443,1624.2,1623.8,6.15834]
[1744685342553,6.9443,1624.2,1623.8,12.31658]
[1744685342757,6.9443,1624.2,1623.8,6.15824]
[1744685343258,0.7873,1624.2,1623.7,14.9092698]
[1744685343560,6.15788,1624.0,1623.6,6.15911]
[1744685343732,6.15802,1623.9,1623.6,6.15911]
[1744685343932,6.92348,1624.1,1623.7,6.15877]
[1744685344133,6.97949,1624.2,1623.8,6.69476]
[1744685344435,13.1851,1624.4,1624.0,6.15745]
[1744685344927,7.02875,1624.4,1624.0,12.3149]
[1744685345131,13.18508,1624.4,1624.0,6.15745]
[1744685345625,13.18511,1624.4,1624.0,6.15745]
[1744685346329,6.15656,1624.3,1624.0,6.15745]
[1744685346530,0.804,1624.1,1623.8,9.6949]
[1744685347157,0.804,1624.1,1623.9,6.15792]
[1744685347456,0.83,1624.2,1624.0,6.15749]
[1744685348355,0.83,1624.2,1623.9,6.15783]
[1744685349853,0.83,1624.2,1623.9,6.21940215]
[1744685350166,6.20616,1624.4,1623.9,2.62453195]
[1744685350167,0.8618,1624.4,1623.9,2.62453195]
[1744685350352,0.8618,1624.4,1624.1,6.69353]
[1744685350862,0.8618,1624.4,1624.1,12.85056]
[1744685351229,0.05,1624.4,1624.3,6.70649]
[1744685351431,0.05,1624.4,1624.2,6.15671]
[1744685351863,0.05,1624.4,1624.2,3.0]
[1744685352367,0.05,1624.4,1624.2,9.15686]
[1744685354664,0.05,1624.4,1624.2,9.15671]
[1744685355058,0.05,1624.4,1624.2,9.21827156]
[1744685355255,0.05,1624.4,1624.3,6.15649]
[1744685355839,0.05,1624.4,1624.3,6.70649]
[1744685356472,0.05,1624.4,1624.3,10.24309]
[1744685356766,0.05,1624.4,1624.3,9.69309]
[1744685357073,0.05,1624.4,1624.3,10.24309]
[1744685358087,0.05,1624.4,1624.3,14.24309]
[1744685360174,0.05,1624.4,1624.3,9.69309]
[1744685360684,0.05,1624.4,1624.3,9.75464478]
[1744685360842,0.05,1624.4,1624.3,10.30464478]
[1744685361466,1e-05,1624.4,1624.3,14.24309]
[1744685361771,0.3500581,1624.5,1624.4,6.69271]
[1744685361970,0.3500581,1624.5,1624.4,9.2556698]
[1744685362492,0.3500581,1624.5,1624.4,13.8056698]
[1744685364995,0.3500581,1624.5,1624.4,16.8056698]
[1744685369757,8.1e-06,1624.5,1624.4,16.8056698]
[1744685370977,0.8172,1625.0,1624.9,6.15422]
[1744685371791,0.8035,1625.2,1624.8,3.55]
[1744685371993,0.8035,1625.2,1625.0,6.15369]
[1744685372197,0.8035,1625.2,1625.0,12.3074]
[1744685372351,0.8035,1625.2,1625.0,6.15369]
[1744685372557,0.8035,1625.2,1625.0,12.30736]
[1744685373594,0.8035,1625.2,1625.0,6.15367]
[1744685373753,0.8035,1625.2,1625.0,6.67674887]
[1744685374099,0.8035,1625.2,1625.0,12.83039887]
[1744685374254,0.05,1625.4,1625.3,9.15271]
[1744685374449,0.05,1625.4,1625.3,11.77718152]
[1744685374695,0.8371,1625.4,1625.2,3.0]
[1744685374992,1.53802253,1625.4,1625.2,3.0]
[1744685375367,1.53802253,1625.4,1625.2,9.15307]
[1744685375585,0.8371,1625.4,1625.3,6.15271]
[1744685376304,0.05,1625.4,1625.3,6.21423084]
[1744685376804,0.05,1625.4,1625.3,9.70271]
[1744685376998,0.05,1625.4,1625.3,9.76422033]
[1744685377209,0.05,1625.4,1625.3,9.70271]
[1744685377505,0.05,1625.4,1625.3,9.76422029]
[1744685377657,0.02004532,1625.5,1625.4,6.70233]
[1744685377861,0.02004532,1625.5,1625.4,14.9072898]
[1744685378086,0.02004532,1625.5,1625.4,18.9072898]
[1744685380095,0.02004532,1625.5,1625.4,14.9072898]
[1744685383027,0.02004532,1625.5,1625.4,18.9072898]
[1744685383325,1.1741481,1626.1,1626.0,6.15006]
[1744685383511,1.1741481,1626.1,1625.8,6.15061]
[1744685383696,1.1741481,1626.1,1625.8,12.30119]
[1744685384426,1.1741481,1626.1,1625.9,6.15042]
[1744685384723,1.1741481,1626.1,1625.8,6.15058]
[1744685385124,0.7741,1626.0,1625.7,6.60418193]
[1744685385530,0.7741,1626.0,1625.4,10.15228]
[1744685385531,0.7541,1625.8,1625.4,10.15228]
[1744685385731,0.7541,1625.8,1625.6,6.15142]
[1744685386030,0.7541,1625.8,1625.5,10.1519]
[1744685386527,0.7541,1625.8,1625.5,6.1519]
[1744685387029,6.90506,1625.8,1625.4,12.30462]
[1744685387232,6.90506,1625.8,1625.5,6.15194]
[1744685387937,0.7541,1625.8,1625.5,6.60370444]
[1744685388133,0.7541,1625.8,1625.5,6.66521637]
[1744685388928,0.7541,1625.8,1625.5,6.60370444]
[1744685389544,6.90498,1625.8,1625.5,6.60370444]
[1744685389721,8.210526,1625.8,1625.4,12.3045]
[1744685390036,8.210526,1625.8,1625.4,12.30435]
[1744685390212,8.210526,1625.8,1625.4,6.15216]
[1744685390408,8.210526,1625.8,1625.4,12.30429]
[1744685390814,8.210526,1625.8,1625.4,6.15213]
[1744685391240,0.12826898,1625.7,1625.4,6.15213]
[1744685392047,0.12826898,1625.7,1625.3,3.0]
[1744685392205,0.12826898,1625.7,1625.5,6.15179]
[1744685392843,0.12826898,1625.7,1625.4,6.15233]
[1744685393153,0.7994,1625.6,1625.4,6.15233]
[1744685393749,0.12826898,1625.5,1625.4,3.0]
[1744685394342,0.12826898,1625.5,1625.2,6.15303]
[1744685394654,0.7994,1625.4,1625.3,6.15269]
[1744685395121,0.92296305,1625.4,1625.2,6.15296]
[1744685395322,0.92296305,1625.4,1625.2,6.2144833]
[1744685395523,0.7994,1625.4,1625.2,6.2144833]
[1744685395935,0.12356305,1625.3,1625.2,6.15296]
[1744685396131,6.95192,1625.4,1625.0,54.13478]
[1744685396307,0.12356305,1625.3,1625.1,4.0]
[1744685396512,6.95192,1625.4,1625.1,7.0]
[1744685396751,0.12356305,1625.2,1625.1,7.0]
[1744685396956,13.10452,1625.4,1625.1,3.0]
[1744685397120,0.12356305,1625.2,1625.1,3.0]
[1744685397456,13.10452,1625.4,1625.1,3.0]
[1744685397654,0.91906305,1625.2,1625.0,54.13472]
[1744685397860,0.7955,1625.2,1625.0,47.981]
[1744685398057,0.12356305,1625.1,1624.9,11.79115]
[1744685398258,6.94861,1625.2,1624.9,5.637]
[1744685398561,0.7955,1625.2,1624.9,5.637]
[1744685398878,0.8333,1625.0,1624.7,12.30969]
[1744685399164,0.8333,1625.2,1624.9,6.1539]
[1744685401264,0.8333,1625.2,1624.9,12.30796]
[1744685401562,0.8333,1625.2,1624.9,6.1539]
[1744685401563,6.98639,1625.2,1624.9,6.1539]
[1744685401762,6.98639,1625.2,1624.8,15.33631108]
[1744685402975,6.98639,1625.2,1624.9,6.1542]
[1744685404763,6.98639,1625.2,1624.8,15.33621108]
[1744685405267,6.98639,1625.2,1624.9,6.15418]
[1744685406184,0.12149838,1625.1,1624.9,6.15418]
[1744685406380,0.12149838,1625.1,1624.8,9.18174108]
[1744685406685,6.98639,1625.2,1624.9,6.15421]
[1744685407049,0.12149838,1625.1,1624.9,6.15421]
[1744685407270,0.12149838,1625.1,1624.9,6.21574353]
[1744685407582,0.8333,1625.2,1624.9,12.36983353]
[1744685407878,0.12149838,1625.0,1624.9,6.15409]
[1744685408040,0.8333,1625.2,1624.9,6.21562358]
[1744685408242,0.12149838,1625.0,1624.9,6.21562358]
[1744685408465,0.8333,1625.2,1624.9,6.21562358]
[1744685408978,0.11811196,1625.1,1624.9,6.21562358]
[1744685409182,0.8333,1625.2,1624.9,6.21562358]
[1744685409482,0.11811196,1625.0,1624.9,6.15409]
[1744685409651,6.15347,1625.1,1624.8,9.18184108]
[1744685409852,0.11811196,1625.0,1624.8,9.18174108]
[1744685410088,0.11811196,1625.0,1624.8,0.46434128]
[1744685410267,0.8216,1625.0,1624.8,3.46434128]
[1744685410470,6.97553,1625.0,1624.8,3.0]
[1744685410685,0.11811196,1624.9,1624.8,3.0]
[1744685413546,0.8161,1624.8,1624.5,6.15567]
[1744685413848,0.8161,1624.8,1624.6,6.15534]
[1744685414049,0.11497245,1624.7,1624.6,6.15534]
[1744685415074,0.8161,1624.8,1624.6,6.15534]
[1744685415278,0.8161,1624.8,1624.5,12.7836193]
[1744685415461,0.697032,1624.8,1624.5,3.0]
[1744685415668,0.8227,1624.6,1624.5,3.0]
[1744685415884,0.8227,1624.6,1624.5,7.0]
[1744685416684,0.8227,1624.6,1624.5,3.0]
[1744685417598,0.8227,1624.6,1624.3,3.0]
[1744685417898,6.15577,1624.5,1624.3,3.0]
[1744685418393,0.8227,1624.6,1624.3,3.0]
[1744685418567,0.8227,1624.6,1624.3,9.15618]
[1744685418769,0.8227,1624.6,1624.3,15.31251]
[1744685419475,0.8227,1624.6,1624.3,9.15618]
[1744685419662,6.97812,1624.6,1624.3,9.15618]
[1744685420500,0.8227,1624.6,1624.4,6.1561]
[1744685420855,0.8227,1624.6,1624.3,9.15618]
[1744685421907,0.8227,1624.6,1624.3,3.06155705]
[1744685422113,0.7531,1624.8,1624.6,6.15534]
[1744685422266,0.8051,1625.3,1625.1,6.15341]
[1744685422474,0.8051,1625.3,1624.9,9.15385]
[1744685422808,0.8051,1625.3,1624.9,9.21538356]
[1744685422980,0.8051,1625.3,1625.1,6.15328]
[1744685424500,0.7989,1625.6,1625.4,6.15217]
[1744685424667,6.95052,1625.6,1625.3,6.15271]
[1744685425306,0.7548,1625.4,1624.6,0.5366]
[1744685425619,6.90937,1624.9,1624.7,4.0]
[1744685426271,13.06394,1624.9,1624.7,4.0]
[1744685426471,13.06394,1624.9,1624.4,6.15607]
[1744685426472,6.1546,1624.8,1624.4,6.15607]
[1744685426715,6.15501,1624.7,1624.5,4.0]
[1744685426886,12.31026,1624.7,1624.5,4.0]
[1744685427223,12.31026,1624.7,1624.4,3.0]
[1744685427224,0.8305,1624.6,1624.4,3.0]
[1744685427418,6.15602,1624.5,1623.9,12.8524]
[1744685427624,6.15648,1624.4,1624.1,4.0]
[1744685427777,6.15581,1624.5,1624.1,4.0]
[1744685427976,6.15618,1624.4,1624.1,4.06156739]
[1744685428324,6.15618,1624.4,1624.1,4.0]
[1744685428705,6.15581,1624.5,1624.1,10.15721]
[1744685428875,12.31181,1624.5,1624.1,10.15721]
[1744685429581,6.15581,1624.5,1624.1,10.15721]
[1744685429780,12.31186,1624.5,1624.1,6.15721]
[1744685430078,6.15615,1624.4,1624.0,9.61844419]
[1744685430421,6.15615,1624.4,1624.0,15.77583419]
[1744685430715,6.15615,1624.4,1624.0,9.61843419]
[1744685431091,6.15705,1624.2,1623.8,59.77825]
[1744685431414,0.29892111,1624.1,1623.9,4.0]
[1744685431829,12.31427,1624.2,1623.9,4.0]
[1744685431990,0.29362973,1624.0,1623.9,4.0]
[1744685432190,6.1573,1624.1,1623.8,6.15825]
[1744685432405,0.29362973,1624.0,1623.8,6.15825]
[1744685433119,0.29362973,1624.0,1623.9,6.15801]
[1744685433625,13.105496,1624.6,1624.0,6.15763]
[1744685433626,0.7977,1624.6,1624.0,6.15763]
[1744685433795,6.95232,1624.8,1624.4,6.1561]
[1744685433985,6.95232,1624.8,1624.4,6.1559]
[1744685434493,0.7977,1624.8,1624.3,3.0]
[1744685434687,5.637,1624.9,1624.5,3.0]
[1744685434889,5.637,1624.9,1624.5,9.1554]
[1744685435117,6.15461,1624.8,1624.5,3.0]
[1744685436449,0.24279319,1624.7,1624.5,3.0]
[1744685436822,0.24279319,1624.7,1624.4,6.15592]
[1744685436823,6.39803319,1624.7,1624.4,3.0]
[1744685437047,0.7937,1624.6,1624.4,3.0]
[1744685437208,13.10307,1624.8,1624.4,9.15587]
[1744685437408,13.10307,1624.8,1624.4,3.0]
[1744685437409,0.24279319,1624.5,1624.4,3.0]
[1744685437609,6.15498,1624.7,1624.4,3.0]
[1744685437849,0.24279319,1624.5,1624.4,9.15608]
[1744685438053,13.10316,1624.8,1624.4,9.15608]
[1744685438254,0.24279319,1624.5,1624.4,9.15608]
[1744685439130,6.94831,1624.8,1624.4,9.15608]
[1744685439315,0.24279319,1624.5,1624.4,9.21763633]
[1744685439516,0.7937,1624.8,1624.5,6.15561]
[1744685439717,6.94865,1624.8,1624.4,9.15608]
[1744685439917,12.31025,1624.7,1624.4,3.0]
[1744685440153,6.94831,1624.8,1624.4,3.0]
[1744685440455,0.7937,1624.8,1624.5,6.15573]
[1744685440954,6.94848,1624.8,1624.4,9.15597]
[1744685441116,6.94848,1624.8,1624.4,9.21752453]
[1744685441417,13.1033,1624.8,1624.4,9.21752453]
[1744685441616,13.1033,1624.8,1624.4,9.15597]
[1744685442445,6.94848,1624.8,1624.4,9.15597]
[1744685442643,13.10331,1624.8,1624.4,9.15597]
[1744685443959,6.15501,1624.7,1624.4,9.15597]
[1744685444159,0.7937,1624.8,1624.3,5.637]
[1744685444318,6.15601,1624.5,1624.1,12.85055]
[1744685444655,6.15511,1624.7,1624.3,6.15633]
[1744685444859,6.15511,1624.7,1624.3,12.31269]
[1744685445655,6.15511,1624.7,1624.4,6.15611]
[1744685445868,8.028755,1624.7,1624.4,6.15611]
[1744685446053,6.4267,1624.8,1624.5,6.1557]
[1744685446345,12.58147,1624.8,1624.4,6.15592]
[1744685446724,6.4267,1624.8,1624.5,6.15564]
[1744685446923,6.4267,1624.8,1624.5,6.15561]
[1744685447149,0.7937,1624.8,1624.6,6.15503]
[1744685447319,0.7937,1624.8,1624.5,6.15572]
[1744685447320,6.94842,1624.8,1624.5,6.15572]
[1744685447724,0.7937,1624.8,1624.5,12.31132]
[1744685448761,0.7937,1624.8,1624.5,12.31118]
[1744685449162,0.7937,1624.8,1624.5,6.15558]
[1744685449382,0.7937,1624.8,1624.5,12.31112]
[1744685449686,0.7937,1624.8,1624.5,6.15554]
[1744685449876,0.7937,1624.8,1624.5,12.31114]
[1744685450359,6.95219,1625.0,1624.6,12.31039]
[1744685450563,8.826062,1625.0,1624.6,12.31039]
[1744685450807,6.1543,1624.9,1624.6,6.15516]
[1744685451006,6.1543,1624.9,1624.5,12.31142]
[1744685451207,0.24701922,1624.8,1624.5,12.31142]
[1744685451374,0.24701922,1624.8,1624.5,6.15571]
[1744685451704,6.1543,1624.9,1624.5,12.31127]
[1744685451902,0.24701922,1624.7,1624.5,12.31127]
[1744685452112,6.1543,1624.9,1624.5,12.31127]
[1744685452308,0.24701922,1624.6,1624.5,12.31127]
[1744685452803,6.1543,1624.9,1624.5,12.31127]
[1744685452979,0.24701922,1624.6,1624.5,6.15556]
[1744685453197,6.1543,1624.9,1624.5,12.31113]
[1744685453396,1.4980342,1624.9,1624.6,6.15516]
[1744685454429,5.633,1625.1,1624.8,6.15429]
[1744685454577,6.97897,1625.2,1624.9,6.15421]
[1744685455113,0.8257,1625.2,1624.9,6.15409]
[1744685455310,0.8257,1625.2,1625.0,6.15375]
[1744685456108,0.8257,1625.2,1624.8,6.15457]
[1744685456311,7.676932,1625.2,1624.8,6.15457]
[1744685456618,7.676932,1625.2,1624.8,6.15439]
[1744685456818,13.830332,1625.2,1624.8,6.15439]
[1744685457142,7.676932,1625.2,1624.8,12.30881]
[1744685457800,7.676932,1625.2,1624.9,6.15419]
[1744685459032,6.15348,1625.1,1624.8,6.15439]
[1744685460848,7.676932,1625.2,1624.8,12.30879]
[1744685461155,0.7676932,1625.1,1624.4,0.45304212]
[1744685461334,0.8166,1624.7,1624.4,6.15598]
[1744685461644,0.8166,1624.7,1624.4,6.15592]
[1744685461816,6.15453,1624.9,1624.7,6.15479]
[1744685461817,0.7754,1624.9,1624.7,6.15479]
[1744685462014,0.7754,1624.9,1624.6,6.15535]
[1744685462327,6.15462,1624.8,1624.5,6.15572]
[1744685462530,6.92987,1624.9,1624.5,12.31126]
[1744685464009,6.92987,1624.9,1624.5,12.31115]
[1744685464215,6.92987,1624.9,1624.5,6.15554]
[1744685464461,7.622857,1624.9,1624.5,12.31111]
[1744685464642,6.92987,1624.9,1624.5,12.31111]
[1744685466262,0.23117887,1624.8,1624.5,12.31111]
[1744685466562,0.7754,1624.9,1624.6,6.15518]
[1744685466764,0.8217,1625.1,1624.8,6.1546]
[1744685466964,0.8217,1625.1,1624.9,6.15398]
[1744685467722,0.8217,1625.1,1624.9,12.30808]
[1744685467927,0.8217,1625.1,1624.9,6.15398]
[1744685468302,6.91861,1625.3,1625.0,6.15384]
[1744685469373,6.91861,1625.3,1624.9,12.3084]
[1744685470449,6.91861,1625.3,1625.0,6.15382]
[1744685470849,6.91861,1625.3,1624.9,6.15406]
[1744685471088,6.15345,1625.2,1624.8,6.15457]
[1744685471252,12.3069,1625.2,1624.8,6.15457]
[1744685471447,6.15348,1625.1,1624.8,6.15457]
[1744685471946,6.15348,1625.1,1624.7,0.5366]
[1744685471947,6.15475,1624.8,1624.4,0.45243822]
[1744685472191,6.94988,1624.7,1624.5,4.0]
[1744685472360,0.7949,1624.7,1624.5,4.0]
[1744685472687,0.7949,1624.7,1624.5,10.15571]
[1744685472991,0.7949,1624.7,1624.5,6.15571]
[1744685473890,0.7949,1625.4,1625.2,6.15308]
[1744685474057,5.632,1625.9,1624.6,6.0995598]
[1744685474058,0.8162,1625.8,1625.4,0.5366]
[1744685474387,0.8162,1625.8,1625.6,6.15142]
[1744685474851,0.8162,1625.8,1625.5,6.15193]
[1744685475479,6.96715,1625.8,1625.4,6.15232]
[1744685475652,7.663818,1625.8,1625.4,6.15232]
[1744685476461,7.663818,1625.8,1625.4,12.36591672]
[1744685476666,6.96715,1625.8,1625.4,12.3044]
[1744685478309,6.96715,1625.8,1625.5,6.15194]
[1744685478504,0.8162,1625.8,1625.6,6.1513]
[1744685478808,0.7957,1626.0,1625.5,0.59811084]
[1744685478990,0.4000481,1626.1,1625.8,6.15067]
[1744685479311,0.4000481,1626.1,1625.9,6.15043]
[1744685479533,0.4000481,1626.1,1625.9,6.15028]
[1744685480375,6.5497381,1626.1,1625.7,6.15109]
[1744685480590,6.5497381,1626.1,1625.7,6.151]
[1744685480816,0.4000481,1626.1,1625.8,6.15081]
[1744685481016,0.20715816,1626.0,1625.8,6.15081]
[1744685481217,0.20715816,1626.0,1625.8,6.15064]
[1744685481437,0.20715816,1626.0,1625.8,6.68724]
[1744685481642,0.20715816,1626.0,1625.9,6.15043]
[1744685483545,0.20715816,1626.0,1625.8,12.8379]
[1744685483833,0.20715816,1626.0,1625.8,6.15064]
[1744685484541,0.20715816,1626.0,1625.8,12.30124]
[1744685485038,0.20715816,1626.0,1625.8,6.1506]
[1744685485335,0.20715816,1626.0,1625.8,12.3012]
[1744685485700,0.20715816,1626.0,1625.7,6.15114]
[1744685485905,0.20715816,1626.0,1625.7,12.30219]
[1744685486439,0.20715816,1626.0,1625.7,6.15105]
[1744685487247,0.20715816,1626.0,1625.9,6.15043]
[1744685487905,0.20715816,1626.0,1625.8,6.15066]
[1744685488963,0.20715816,1626.0,1625.7,6.15107]
[1744685489459,0.8041,1625.9,1625.6,6.15137]
[1744685489825,0.19373537,1625.8,1625.6,6.15137]
[1744685491154,6.15163,1625.6,1625.3,6.15259]
[1744685491334,0.698193,1625.6,1625.4,4.0]
[1744685491660,0.19373537,1625.5,1625.3,6.15254]
[1744685492034,6.98264,1625.4,1625.1,6.15335]
[1744685492225,7.17637537,1625.4,1625.1,6.15335]
[1744685492563,1.02403537,1625.4,1625.1,6.15328]
[1744685493121,1.02403537,1625.4,1625.0,0.5366]
[1744685493364,0.19373537,1625.4,1625.3,6.15271]
[1744685493567,6.4553,1625.9,1625.3,6.76423202]
[1744685493866,7.13787596,1625.9,1625.5,6.15167]
[1744685494051,0.8303,1625.9,1625.7,6.15104]
[1744685494429,0.8303,1625.9,1625.6,6.15157]
[1744685494625,0.8303,1625.9,1625.7,6.15116]
[1744685495369,0.8303,1625.9,1625.6,6.15157]
[1744685496273,0.18808578,1625.8,1625.6,6.15157]
[1744685498788,6.91045,1625.6,1625.3,0.5366]
[1744685498948,6.34290774,1625.5,1625.4,4.0]
[1744685499781,12.49522774,1625.5,1625.1,6.15341]
[1744685500081,6.15236,1625.4,1625.1,6.15341]
[1744685500286,6.91733,1625.3,1625.0,5.626]
[1744685500492,0.7646,1625.5,1625.1,2.98281744]
[1744685500785,0.7646,1625.5,1625.2,6.15299]
[1744685501293,8.223375,1625.5,1625.1,6.15317]
[1744685501471,0.7646,1625.5,1625.1,6.15317]
[1744685501671,0.7646,1625.5,1625.2,6.15304]
[1744685502168,0.7646,1625.5,1625.2,0.59812467]
[1744685502492,6.15123,1625.7,1625.2,0.59812467]
[1744685502493,6.15172,1625.6,1625.2,12.90394467]
[1744685502695,7.458475,1625.6,1625.2,6.68948]
[1744685502900,7.458475,1625.6,1625.2,12.84243]
[1744685503262,0.4000481,1626.1,1626.0,6.15006]
[1744685503760,0.4000481,1626.1,1625.9,6.15028]
[1744685503960,0.4000481,1626.1,1625.9,6.15023]
[1744685504875,0.4000481,1626.1,1626.0,6.15006]
[1744685508298,0.4000481,1626.1,1626.0,9.74815033]
[1744685508671,0.57161685,1626.1,1626.0,9.68666]
[1744685511167,0.57161685,1626.1,1625.9,6.61372971]
[1744685511476,0.4000481,1626.1,1625.9,6.61372971]
[1744685511902,0.17788907,1626.0,1625.9,9.61372971]
[1744685517722,0.17788907,1626.0,1625.9,6.15023]
[1744685517886,0.17788907,1626.0,1625.9,6.15043]
[1744685519498,0.17788907,1626.0,1625.8,6.15065]